[Event "DVM U14 2021"]
[Site "Willingen"]
[Date "2022.08.14"]
[Round "3"]
[White "Braeutigam, Katerina"]
[Black "Chugunov, Ivan"]
[Result "1-0"]
[ECO "B13"]
[WhiteElo "1781"]
[BlackElo "1630"]
[Annotator "NA RC"]
[PlyCount "106"]
[EventDate "2022.08.12"]
[EventType "team-tourn"]
[EventRounds "7"]
[EventCountry "GER"]
[SourceTitle "playchess.com"]
[Source "ChessBase"]
[SourceQuality "1"]
[TimeControl "40/5400+30:1800+30"]

1. e4 {[%emt 0:00:01]} c6 {[%emt 0:00:11]} 2. d4 {[%emt 0:00:04]} d5 {[%emt 0:00:10]} 3. exd5 {[%emt 0:00:03]} cxd5 {[%emt 0:00:08]} 4. Bd3 {[%emt 0:00:04]} Nc6 {[%emt 0:00:30]} 5. c3 {[%emt 0:00:06]} Nf6 {[%emt 0:00:15]} 6. h3 {[%emt 0:00:16]} e5 {[%emt 0:00:23]} 7. dxe5 {[%emt 0:00:07]} Nxe5 {[%emt 0:00:07]} 8. Nf3 {[%emt 0:00:44]} Nxd3+ {[%emt 0:00:50]} 9. Qxd3 {[%emt 0:00:08]} Be7 {[%emt 0:01:49]} 10. O-O {[%emt 0:00:34]} O-O {[%emt 0:02:29]} 11. Be3 {[%emt 0:03:04]} b6 {[%emt 0:02:01]} 12. Nbd2 {[%emt 0:06:31]} a5 {[%emt 0:03:05]} 13. Rfe1 {[%emt 0:04:38]} Ba6 {[%emt 0:09:38]} 14. Qc2 {[%emt 0:04:12]} Re8 {[%emt 0:02:24]} 15. a4 {[%emt 0:08:13]} Qc7 {[%emt 0:03:35]} 16. Nd4 {[%emt 0:08:23]} Bc5 {[%emt 0:03:00]} 17. Rad1 {[%emt 0:06:07]} Ne4 {[%emt 0:06:21]} 18. Nf5 {[%emt 0:25:38]} Qe5 {[%emt 0:09:12]} 19. Bxc5 {[%emt 0:09:08]} bxc5 {[%emt 0:00:59]} 20. Ng3 {[%emt 0:01:26]} f5 {[%emt 0:01:49]} 21. c4 {[%emt 0:05:23]} Qf4 {[%emt 0:01:47]} 22. Ngxe4 {[%emt 0:05:58]} dxe4 {[%emt 0:04:06]} 23. Nb3 {[%emt 0:01:01]} e3 {[%emt 0:00:51]} 24. Nxa5 {[%emt 0:06:01]} Rab8 {[%emt 0:07:20]} 25. fxe3 {[%emt 0:04:32]} Rxe3 {[%emt 0:00:27]} 26. Rf1 {[%emt 0:00:16]} Qe4 {[%emt 0:10:33]} 27. Qxe4 {[%emt 0:00:05]} Rxe4 {[%emt 0:03:56]} 28. b3 {[%emt 0:01:03]} g6 {[%emt 0:02:13]} 29. Rd5 {[%emt 0:00:39]} Rbe8 {[%emt 0:11:33]} 30. Rxc5 {[%emt 0:00:26]} R8e5 {[%emt 0:00:38]} 31. Rxe5 {[%emt 0:00:14]} Rxe5 {[%emt 0:00:03]} 32. b4 {[%emt 0:00:19]} Kf7 {[%emt 0:01:50]} 33. Kf2 {[%emt 0:00:43]} Ke6 {[%emt 0:00:14]} 34. Re1 {[%emt 0:00:15]} Rxe1 {[%emt 0:01:46]} 35. Kxe1 {[%emt 0:00:01]} Kd6 {[%emt 0:01:22]} 36. Kd2 {[%emt 0:00:28]} g5 {[%emt 0:00:11]} 37. Ke3 {[%emt 0:00:32]} h5 {[%emt 0:00:30]} 38. Kd4 {[%emt 0:00:46]} Bc8 {[%emt 0:00:14]} 39. c5+ {[%emt 0:00:32]} Kc7 {[%emt 0:00:16]} 40. b5 {[%emt 0:00:46]} h4 {[%emt 0:00:58]} 41. Nc4 {[%emt 0:13:08]} g4 {[%emt 0:01:21]} 42. Ne5 {[%emt 0:09:55]} gxh3 {[%emt 0:03:08]} 43. gxh3 {[%emt 0:00:03]} f4 {[%emt 0:00:50]} 44. Ng6 {[%emt 0:01:32]} Bxh3 {[%emt 0:01:36]} 45. Nxh4 {[%emt 0:00:31]} Bg4 {[%emt 0:01:07]} 46. a5 {[%emt 0:05:04]} Bd7 {[%emt 0:01:13]} 47. b6+ {[%emt 0:01:44]} Kb7 {[%emt 0:00:18]} 48. Ng6 {[%emt 0:01:02]} Bc6 {[%emt 0:00:59]} 49. Nxf4 {[%emt 0:01:24]} Ka6 {[%emt 0:00:21]} 50. Ne6 {[%emt 0:00:31]} Kxa5 {[%emt 0:02:28]} 51. Nd8 {[%emt 0:00:17]} Ba8 {[%emt 0:00:26]} 52. b7 {[%emt 0:00:10]} Bxb7 {[%emt 0:00:10]} 53. Nxb7+ {[%emt 0:00:02]} Ka6 {[%emt 0:00:10]} 1-0

[Event "DVM U14 2021"]
[Site "Willingen"]
[Date "2022.08.14"]
[Round "3"]
[White "Englert, Luca"]
[Black "Beyer, Lorenz"]
[Result "1-0"]
[ECO "D11"]
[WhiteElo "1741"]
[BlackElo "1587"]
[Annotator "NA RC"]
[PlyCount "55"]
[EventDate "2022.08.12"]
[EventType "team-tourn"]
[EventRounds "7"]
[EventCountry "GER"]
[SourceTitle "playchess.com"]
[Source "ChessBase"]
[SourceQuality "1"]
[TimeControl "40/5400+30:1800+30"]

1. Nf3 {[%emt 0:00:12]} d5 {[%emt 0:00:00]} 2. d4 {[%emt 0:00:29]} Bf5 {[%emt 0:00:00]} 3. c4 {[%emt 0:00:20]} e6 {[%emt 0:00:00]} 4. g3 {[%emt 0:00:04]} c6 {[%emt 0:00:00]} 5. Bg2 {[%emt 0:00:22]} Nf6 {[%emt 0:00:06]} 6. O-O {[%emt 0:00:07]} h6 {[%emt 0:00:06]} 7. Nc3 {[%emt 0:00:20]} Be7 {[%emt 0:01:15]} 8. a3 {[%emt 0:00:15]} O-O {[%emt 0:00:10]} 9. b4 {[%emt 0:05:07]} Nbd7 {[%emt 0:02:25]} 10. Bb2 {[%emt 0:01:55]} dxc4 {[%emt 0:14:21]} 11. Nd2 {[%emt 0:03:33]} Nb6 {[%emt 0:00:24]} 12. e4 {[%emt 0:00:20]} Bg6 {[%emt 0:01:33]} 13. Ne2 {[%emt 0:02:47]} Rc8 {[%emt 0:02:13]} 14. Rc1 {[%emt 0:03:30]} Bh7 {[%emt 0:08:18]} 15. h3 {[%emt 0:02:13]} Qd7 {[%emt 0:03:51]} 16. g4 {[%emt 0:02:45]} Ne8 {[%emt 0:15:49]} 17. f4 {[%emt 0:07:51]} Rd8 {[%emt 0:11:34]} 18. Nf3 {[%emt 0:09:14]} Nd6 {[%emt 0:05:08]} 19. f5 {[%emt 0:03:59]} exf5 {[%emt 0:00:41]} 20. Ne5 {[%emt 0:00:47]} Qc7 {[%emt 0:01:07]} 21. gxf5 {[%emt 0:07:27]} Nd7 {[%emt 0:01:49]} 22. Qe1 {[%emt 0:10:43]} Nb5 {[%emt 0:04:28]} 23. Nxc4 {[%emt 0:02:58]} Nb6 {[%emt 0:02:18]} 24. e5 {[%emt 0:02:23]} Nxc4 {[%emt 0:00:10]} 25. Rxc4 {[%emt 0:01:17]} f6 {[%emt 0:00:32]} 26. a4 {[%emt 0:00:58]} Nxd4 {[%emt 0:00:25]} 27. Nxd4 {[%emt 0:00:39]} Qb6 {[%emt 0:00:12]} 28. a5 {[%emt 0:00:33]} 1-0

[Event "DVM U14 2021"]
[Site "Willingen"]
[Date "2022.08.14"]
[Round "3"]
[White "Trenz, Finn"]
[Black "Schwan, Aaron"]
[Result "1/2-1/2"]
[ECO "A36"]
[WhiteElo "1667"]
[BlackElo "1672"]
[Annotator "NA RC"]
[PlyCount "92"]
[EventDate "2022.08.12"]
[EventType "team-tourn"]
[EventRounds "7"]
[EventCountry "GER"]
[SourceTitle "playchess.com"]
[Source "ChessBase"]
[SourceQuality "1"]
[TimeControl "40/5400+30:1800+30"]

1. e4 {[%emt 0:00:02]} c5 {[%emt 0:00:00]} 2. c4 {[%emt 0:00:14]} Nc6 {[%emt 0:00:09]} 3. Nc3 {[%emt 0:00:49]} g6 {[%emt 0:00:08]} 4. g3 {[%emt 0:00:02]} Bg7 {[%emt 0:00:05]} 5. Bg2 {[%emt 0:04:29]} e6 {[%emt 0:01:30]} 6. Nge2 {[%emt 0:00:58]} d6 {[%emt 0:01:00]} 7. d3 {[%emt 0:01:04]} Nge7 {[%emt 0:01:15]} 8. Be3 {[%emt 0:01:18]} a6 {[%emt 0:01:24]} 9. d4 {[%emt 0:03:06]} cxd4 {[%emt 0:00:10]} 10. Nxd4 {[%emt 0:01:23]} O-O {[%emt 0:00:52]} 11. O-O {[%emt 0:05:06]} Qc7 {[%emt 0:05:22]} 12. Nde2 {[%emt 0:04:51]} Na5 {[%emt 0:11:18]} 13. b3 {[%emt 0:07:24]} Nac6 {[%emt 0:01:42]} 14. Rc1 {[%emt 0:02:44]} Rb8 {[%emt 0:02:33]} 15. Nd5 {[%emt 0:03:08]} exd5 {[%emt 0:00:25]} 16. cxd5 {[%emt 0:01:01]} Qa5 {[%emt 0:00:53]} 17. dxc6 {[%emt 0:00:01]} Nxc6 {[%emt 0:10:58]} 18. Qd2 {[%emt 0:06:08]} Qa3 {[%emt 0:14:23]} 19. Rfd1 {[%emt 0:06:37]} Bg4 {[%emt 0:10:26]} 20. f3 {[%emt 0:02:06]} Be6 {[%emt 0:05:30]} 21. Bf4 {[%emt 0:04:57]} Ne5 {[%emt 0:07:40]} 22. Nc3 {[%emt 0:04:46]} Rfd8 {[%emt 0:04:01]} 23. Bh6 {[%emt 0:06:10]} Bxh6 {[%emt 0:00:06]} 24. Qxh6 {[%emt 0:00:32]} Rbc8 {[%emt 0:02:22]} 25. Qd2 {[%emt 0:04:13]} Qa5 {[%emt 0:04:17]} 26. Rc2 {[%emt 0:03:59]} Qc7 {[%emt 0:01:54]} 27. Rdc1 {[%emt 0:02:26]} Qd7 {[%emt 0:01:13]} 28. Nd5 {[%emt 0:00:27]} Bxd5 {[%emt 0:00:29]} 29. Qxd5 {[%emt 0:01:35]} Rxc2 {[%emt 0:00:10]} 30. Rxc2 {[%emt 0:00:33]} Nc6 {[%emt 0:01:21]} 31. Rd2 {[%emt 0:01:24]} Qc7 {[%emt 0:01:29]} 32. Qc4 {[%emt 0:00:32]} Qb6+ {[%emt 0:02:10]} 33. Kf1 {[%emt 0:09:51]} Ne5 {[%emt 0:01:15]} 34. Qd4 {[%emt 0:01:43]} Qb5+ {[%emt 0:01:17]} 35. Kf2 {[%emt 0:03:06]} Qc6 {[%emt 0:02:41]} 36. Bf1 {[%emt 0:01:24]} b5 {[%emt 0:02:11]} 37. Be2 {[%emt 0:03:21]} Qc7 {[%emt 0:00:39]} 38. f4 {[%emt 0:00:19]} Nc6 {[%emt 0:01:55]} 39. Qc3 {[%emt 0:01:00]} Qb6+ {[%emt 0:00:52]} 40. Kg2 {[%emt 0:04:35]} Na5 {[%emt 0:01:52]} 41. Bf3 {[%emt 0:01:36]} Nb7 {[%emt 0:09:25]} 42. b4 {[%emt 0:05:22]} Re8 {[%emt 0:04:43]} 43. Rc2 {[%emt 0:04:45]} Nd8 {[%emt 0:05:19]} 44. Qc7 {[%emt 0:01:00]} Qd4 {[%emt 0:03:54]} 45. Qd7 {[%emt 0:00:31]} Rf8 {[%emt 0:00:49]} 46. Rc8 {[%emt 0:01:18]} Ne6 1/2-1/2

[Event "DVM U14 2021"]
[Site "Willingen"]
[Date "2022.08.14"]
[Round "3"]
[White "Hoffmann, Kay"]
[Black "Schoen, Florian"]
[Result "1/2-1/2"]
[ECO "A02"]
[WhiteElo "1653"]
[BlackElo "1688"]
[Annotator "NA RC"]
[PlyCount "47"]
[EventDate "2022.08.12"]
[EventType "team-tourn"]
[EventRounds "7"]
[EventCountry "GER"]
[SourceTitle "playchess.com"]
[Source "ChessBase"]
[SourceQuality "1"]
[TimeControl "40/5400+30:1800+30"]

1. f4 {[%emt 0:00:02]} e5 {[%emt 0:00:08]} 2. fxe5 {[%emt 0:00:04]} Nc6 {[%emt 0:00:02]} 3. Nf3 {[%emt 0:00:21]} g5 {[%emt 0:00:06]} 4. d4 {[%emt 0:02:08]} g4 {[%emt 0:00:39]} 5. Ng5 {[%emt 0:04:58]} d5 {[%emt 0:00:19]} 6. exd6 {[%emt 0:23:03]} Qxd6 {[%emt 0:03:21]} 7. c3 {[%emt 0:10:27]} h6 {[%emt 0:38:31]} 8. Ne4 {[%emt 0:01:31]} Qg6 {[%emt 0:00:38]} 9. Ng3 {[%emt 0:01:43]} Bd6 {[%emt 0:01:39]} 10. Qd3 {[%emt 0:01:30]} Bxg3+ {[%emt 0:02:40]} 11. hxg3 {[%emt 0:00:48]} Bf5 {[%emt 0:00:25]} 12. Qb5 {[%emt 0:04:10]} Bxb1 {[%emt 0:03:00]} 13. d5 {[%emt 0:00:53]} O-O-O {[%emt 0:02:10]} 14. dxc6 {[%emt 0:00:58]} bxc6 {[%emt 0:00:27]} 15. Qa6+ {[%emt 0:00:20]} Kd7 {[%emt 0:00:45]} 16. Bf4 {[%emt 0:04:12]} Nf6 {[%emt 0:06:22]} 17. Rxh6 {[%emt 0:03:27]} Rxh6 {[%emt 0:03:25]} 18. Bxh6 {[%emt 0:00:48]} Rh8 {[%emt 0:02:50]} 19. Bf4 {[%emt 0:01:14]} Rh1 {[%emt 0:06:42]} 20. Qxa7 {[%emt 0:05:28]} Nd5 {[%emt 0:01:18]} 21. Qd4 {[%emt 0:01:00]} Kc8 {[%emt 0:01:32]} 22. Kf2 {[%emt 0:04:01]} Nxf4 {[%emt 0:04:39]} 23. Qxf4 {[%emt 0:01:35]} Qc2 {[%emt 0:00:29]} 24. Qxg4+ {[%emt 0:03:24]} 1/2-1/2

[Event "DVM U14 2021"]
[Site "Willingen"]
[Date "2022.08.14"]
[Round "3"]
[White "Martin Fernandez, Rafael"]
[Black "Schaudienst, Arvid"]
[Result "1-0"]
[ECO "B76"]
[WhiteElo "1645"]
[BlackElo "1431"]
[Annotator "NA RC"]
[PlyCount "64"]
[EventDate "2022.08.12"]
[EventType "team-tourn"]
[EventRounds "7"]
[EventCountry "GER"]
[SourceTitle "playchess.com"]
[Source "ChessBase"]
[SourceQuality "1"]
[TimeControl "40/5400+30:1800+30"]

1. e4 {[%emt 0:00:07]} c5 {[%emt 0:00:03]} 2. Nf3 {[%emt 0:00:07]} d6 {[%emt 0:00:33]} 3. d4 {[%emt 0:00:07]} cxd4 {[%emt 0:00:12]} 4. Nxd4 {[%emt 0:00:05]} Nf6 {[%emt 0:00:22]} 5. Nc3 {[%emt 0:00:09]} g6 {[%emt 0:00:54]} 6. Be3 {[%emt 0:00:07]} Bg7 {[%emt 0:00:57]} 7. f3 {[%emt 0:01:03]} O-O {[%emt 0:02:04]} 8. Qd2 {[%emt 0:00:08]} Nc6 {[%emt 0:02:46]} 9. g4 {[%emt 0:02:29]} Bd7 {[%emt 0:01:33]} 10. O-O-O {[%emt 0:00:48]} Rc8 {[%emt 0:02:15]} 11. Kb1 {[%emt 0:00:15]} Re8 {[%emt 0:02:38]} 12. g5 {[%emt 0:01:40]} Nh5 {[%emt 0:00:27]} 13. Nce2 {[%emt 0:07:04]} Ne5 {[%emt 0:03:17]} 14. Ng3 {[%emt 0:13:11]} Qb6 {[%emt 0:02:45]} 15. Be2 {[%emt 0:02:53]} Nc4 {[%emt 0:00:08]} 16. Bxc4 {[%emt 0:00:10]} Rxc4 {[%emt 0:00:03]} 17. Nb3 {[%emt 0:01:13]} Qc7 {[%emt 0:00:21]} 18. Nxh5 {[%emt 0:00:09]} gxh5 {[%emt 0:04:16]} 19. Rhg1 {[%emt 0:02:02]} Rc8 {[%emt 0:00:38]} 20. c3 {[%emt 0:01:50]} Ba4 {[%emt 0:08:56]} 21. Rc1 {[%emt 0:17:18]} a5 {[%emt 0:00:43]} 22. Bd4 {[%emt 0:12:50]} Bxd4 {[%emt 0:00:09]} 23. Nxd4 {[%emt 0:02:46]} Qb6 {[%emt 0:02:59]} 24. Nf5 {[%emt 0:17:18]} R8c7 {[%emt 0:01:56]} 25. g6 {[%emt 0:06:22]} fxg6 {[%emt 0:00:22]} 26. Qh6 {[%emt 0:04:05]} e6 {[%emt 0:17:43]} 27. Nd4 {[%emt 0:06:13]} Bd7 {[%emt 0:00:52]} 28. Rxg6+ {[%emt 0:01:17]} hxg6 {[%emt 0:00:05]} 29. Qxg6+ {[%emt 0:00:35]} Kf8 {[%emt 0:00:15]} 30. Qf6+ {[%emt 0:00:15]} Ke8 {[%emt 0:00:16]} 31. Rg1 {[%emt 0:00:00]} Ba4 {[%emt 2:47:05]} 32. Qh8+ {[%emt 0:00:05]} Kd7 {[%emt 0:00:02]} 1-0

[Event "DVM U14 2021"]
[Site "Willingen"]
[Date "2022.08.14"]
[Round "3"]
[White "Aravindan, Midhulan"]
[Black "Fuhrmann, Bahne"]
[Result "0-1"]
[ECO "C68"]
[WhiteElo "1642"]
[BlackElo "1973"]
[Annotator "TA"]
[PlyCount "48"]
[EventDate "2022.08.12"]
[EventType "team-tourn"]
[EventRounds "7"]
[EventCountry "GER"]
[SourceTitle "playchess.com"]
[Source "ChessBase"]
[SourceQuality "1"]
[TimeControl "40/5400+30:1800+30"]

{[%evp 9,47,25,30,0,11,0,25,10,10,-14,0,-39,-26,-88,-120,-93,-101,-94,0,0,79,60,101,-235,-223,-221,-222,-451,-443,-754,-553,-1195,-1169,-29978,-29979,-29996,-29997,-29998,-29999,-29999]} 1. e4 {[%emt 0:00:04]} e5 {[%emt 0:00:00]} 2. Nf3 {[%emt 0:00:03]} Nc6 {[%emt 0:00:00]} 3. Bb5 {[%emt 0:00:04]} a6 {[%emt 0:00:00]} 4. Bxc6 {[%emt 0:00:04]} dxc6 {[%emt 0:00:00]} 5. O-O {[%emt 0:00:10]} Qf6 {[%emt 0:00:26]} 6. d3 {[%emt 0:00:06] C68: Ruy Lopez: Exchange Variation, sidelines.} Ne7 {[%emt 0:00:52]} 7. Be3 {[%emt 0:10:29]} Bd7 {[%emt 0:01:35]} 8. Nbd2 {[%emt 0:00:51] White has an edge.} Ng6 {[%emt 0:07:34] [#]} 9. Nc4 $146 {[%emt 0:03:59]} ({Predecessor:} 9. d4 exd4 10. Bxd4 Qd6 11. Nc4 Qf4 12. g3 Qg4 13. Nfe5 Nxe5 14. Nxe5 Qxd1 15. Raxd1 {½-½ (40) Verneuil,P (2065)-Krokay,U (1926) Caleta 2014}) 9... c5 {[%emt 0:02:36]} 10. c3 {[%emt 0:08:12]} Bg4 {[%emt 0:15:05]} 11. Qb3 {[%emt 0:16:33]} (11. Ncd2 $11 {remains equal.}) 11... Bxf3 $17 {[%emt 0:05:47]} 12. Qxb7 {[%emt 0:00:17]} (12. gxf3 $2 Nh4 13. Rfd1 O-O-O $19) 12... Rd8 {[%emt 0:03:58][%cal Of3g2] White must now prevent ...Bxg2!} 13. gxf3 {[%emt 0:02:28]} Nh4 {[%emt 0:04:48]} ({Black should play} 13... Be7 $1 $17 {Strongly threatening ...0-0.} 14. Qxc7 O-O) 14. Rfd1 $11 {[%emt 0:03:19]} (14. Nxe5 $2 Qxe5 15. Qc6+ Rd7 16. Qa8+ Rd8 17. Qc6+ Rd7 18. Qa8+ Rd8 19. Qc6+ $19) 14... Be7 {[%emt 0:04:50]} (14... Nxf3+ $11 15. Kg2 (15. Kh1 Qh4 $17) 15... Be7) 15. Qxc7 {[%emt 0:03:59] Hoping for Kf1.} O-O {[%emt 0:13:40][%cal Of6f3]} 16. f4 {[%emt 0:11:12][%mdl 8192] [#] This move loses the game for White.} (16. Nxe5 $2 Bd6 17. Qc6 Qxe5 $19) (16. Kf1 $16) 16... Rc8 $1 $40 {[%emt 0:06:44][%mdl 128] Black attacks with force.} (16... Qg6+ 17. Kf1 Bd6 18. Nxd6 Rxd6 19. fxe5 $14 (19. Bxc5 Rc6 $11)) 17. Qd7 {[%emt 0:00:35]} ({Worse is} 17. Qb6 Rc6 18. Qb7 exf4 19. Bxf4 Nf3+ 20. Kf1 Qxf4 21. Qxc6 Qg4 $11) 17... exf4 {[%emt 0:02:13]} 18. Bxf4 $2 {[%emt 0:00:44]} (18. Qg4 {keeps fighting.} fxe3 19. fxe3) 18... Qxf4 {[%emt 0:00:15]} ({Weaker is} 18... Nf3+ 19. Kf1 Qxf4 20. Qxe7 Nxh2+ 21. Ke2 $15 (21. Ke1 Nf3+ 22. Kf1 Rc6 $19)) 19. Qxe7 {[%emt 0:15:02]} (19. Qh3 $142 f5 20. Kh1) 19... Rc6 {[%emt 0:07:27]} 20. Kf1 {[%emt 0:03:22] [#]} Ng6 {[%emt 0:05:21][%cal Bh4g6,Bg6f4,Bf4e2][%mdl 32] Prevents Qe5.} 21. Qa7 {[%emt 0:00:59]} Qf3 {[%emt 0:03:44] Black mates.} 22. Ke1 {[%emt 0:00:26]} Nf4 {[%emt 0:01:44][%csl Gf4][%cal Rf3e2]} 23. Kd2 {[%emt 0:00:13]} Qxd3+ {[%emt 0:00:21]} 24. Kc1 Ne2# {[%emt 2:52:41] Weighted Error Value: White=1.03/Black=0.25 (precise)} 0-1

[Event "DVM U14 2021"]
[Site "Willingen"]
[Date "2022.08.14"]
[Round "3"]
[White "Bezsonna, Polina"]
[Black "Tomasjan, Samuel"]
[Result "0-1"]
[ECO "C56"]
[WhiteElo "1631"]
[BlackElo "1741"]
[Annotator "NA RC"]
[PlyCount "62"]
[EventDate "2022.08.12"]
[EventType "team-tourn"]
[EventRounds "7"]
[EventCountry "GER"]
[SourceTitle "playchess.com"]
[Source "ChessBase"]
[SourceQuality "1"]
[TimeControl "40/5400+30:1800+30"]

1. e4 {[%emt 0:00:03]} e5 {[%emt 0:00:04]} 2. Nf3 {[%emt 0:00:07]} Nc6 {[%emt 0:00:04]} 3. d4 {[%emt 0:00:08]} exd4 {[%emt 0:00:05]} 4. Bc4 {[%emt 0:00:11]} Nf6 {[%emt 0:00:04]} 5. O-O {[%emt 0:00:58]} Bc5 {[%emt 0:00:05]} 6. e5 {[%emt 0:00:18]} d5 {[%emt 0:00:06]} 7. Bb5 {[%emt 0:00:19]} Ne4 {[%emt 0:00:06]} 8. Nxd4 {[%emt 0:00:25]} O-O {[%emt 0:00:16]} 9. Bxc6 {[%emt 0:00:59]} bxc6 {[%emt 0:00:23]} 10. Be3 {[%emt 0:00:43]} Ba6 {[%emt 0:04:02]} 11. Re1 {[%emt 0:02:06]} Bxd4 {[%emt 0:07:20]} 12. Bxd4 {[%emt 0:00:14]} c5 {[%emt 0:02:07]} 13. Be3 {[%emt 0:00:11]} Bb7 {[%emt 0:01:28]} 14. c3 {[%emt 0:06:59]} Qe7 {[%emt 0:02:37]} 15. f3 {[%emt 0:07:21]} Ng5 {[%emt 0:00:15]} 16. Nd2 {[%emt 0:05:59]} Ne6 {[%emt 0:05:08]} 17. Nb3 {[%emt 0:03:15]} Rfd8 {[%emt 0:02:35]} 18. f4 {[%emt 0:05:14]} d4 {[%emt 0:01:29]} 19. cxd4 {[%emt 0:01:08]} cxd4 {[%emt 0:00:11]} 20. Bd2 {[%emt 0:01:23]} f5 {[%emt 0:10:37]} 21. exf6 {[%emt 0:03:21]} Qxf6 {[%emt 0:00:19]} 22. Qg4 {[%emt 0:01:34]} Nf8 {[%emt 0:03:35]} 23. Bb4 {[%emt 0:14:14]} Re8 {[%emt 0:27:18]} 24. Ba5 {[%emt 0:09:38]} Qd6 {[%emt 0:10:10]} 25. Rxe8 {[%emt 0:07:41]} Rxe8 {[%emt 0:00:12]} 26. Rc1 {[%emt 0:00:42]} Re7 {[%emt 0:11:26]} 27. f5 {[%emt 0:05:34]} Re4 {[%emt 0:03:10]} 28. Qg5 {[%emt 0:04:13]} Re2 {[%emt 0:01:25]} 29. Bxc7 {[%emt 0:03:26]} Qd5 {[%emt 0:00:21]} 30. Kf1 {[%emt 0:00:16]} Rxg2 {[%emt 0:00:48]} 31. Qf4 {[%emt 0:00:33]} Ba6+ {[%emt 0:00:31]} 0-1

[Event "DVM U14 2021"]
[Site "Willingen"]
[Date "2022.08.14"]
[Round "3"]
[White "Isbilir, Levin"]
[Black "Bongardt, Livius"]
[Result "1-0"]
[ECO "C68"]
[WhiteElo "1629"]
[BlackElo "1756"]
[Annotator "NA RC"]
[PlyCount "89"]
[EventDate "2022.08.12"]
[EventType "team-tourn"]
[EventRounds "7"]
[EventCountry "GER"]
[SourceTitle "playchess.com"]
[Source "ChessBase"]
[SourceQuality "1"]
[TimeControl "40/5400+30:1800+30"]

1. e4 {[%emt 0:00:05]} e5 {[%emt 0:00:00]} 2. Nf3 {[%emt 0:00:04]} Nc6 {[%emt 0:00:00]} 3. Bb5 {[%emt 0:00:04]} a6 {[%emt 0:00:00]} 4. Bxc6 {[%emt 0:00:07]} dxc6 {[%emt 0:00:00]} 5. O-O {[%emt 0:01:03]} Bg4 {[%emt 0:00:09]} 6. h3 {[%emt 0:00:40]} Bxf3 {[%emt 0:00:26]} 7. Qxf3 {[%emt 0:14:35]} Bc5 {[%emt 0:03:28]} 8. d3 {[%emt 0:12:46]} Qf6 {[%emt 0:20:42]} 9. Nd2 {[%emt 0:43:45]} Qe6 {[%emt 0:09:32]} 10. Nb3 {[%emt 0:05:44]} Be7 {[%emt 0:03:26]} 11. Be3 {[%emt 0:07:07]} f6 {[%emt 0:29:31]} 12. d4 {[%emt 0:00:30]} O-O-O {[%emt 0:03:57]} 13. Rad1 {[%emt 0:07:19]} Bd6 {[%emt 0:06:56]} 14. dxe5 {[%emt 0:00:42]} fxe5 {[%emt 0:02:24]} 15. Nc5 {[%emt 0:01:56]} Bxc5 {[%emt 0:01:28]} 16. Rxd8+ {[%emt 0:00:05]} Kxd8 {[%emt 0:00:08]} 17. Bxc5 {[%emt 0:00:30]} Nf6 {[%emt 0:00:45]} 18. Rd1+ {[%emt 0:00:13]} Kc8 {[%emt 0:01:20]} 19. b3 {[%emt 0:01:20]} Rg8 {[%emt 0:01:36]} 20. Qe3 {[%emt 0:00:41]} g5 {[%emt 0:04:20]} 21. Bb4 {[%emt 0:00:34]} b6 {[%emt 0:01:06]} 22. a4 {[%emt 0:00:30]} c5 {[%emt 0:01:22]} 23. Bc3 {[%emt 0:00:56]} h5 {[%emt 0:02:56]} 24. Qf3 {[%emt 0:00:37]} g4 {[%emt 0:00:05]} 25. hxg4 {[%emt 0:00:29]} Nxg4 {[%emt 0:00:29]} 26. Qh3 {[%emt 0:00:37]} Rg6 {[%emt 0:01:55]} 27. Rd5 {[%emt 0:00:24]} c6 {[%emt 0:00:42]} 28. Rd3 {[%emt 0:00:34]} Kc7 {[%emt 0:00:25]} 29. f3 {[%emt 0:00:31]} Nh6 {[%emt 0:01:24]} 30. Bxe5+ {[%emt 0:00:18]} Kc8 {[%emt 0:01:54]} 31. Qxh5 {[%emt 0:00:29]} Nf7 {[%emt 0:00:35]} 32. Bh2 {[%emt 0:00:38]} Rg5 {[%emt 0:01:15]} 33. Qh4 {[%emt 0:00:36]} a5 {[%emt 0:00:54]} 34. Qf4 {[%emt 0:00:28]} Re5 {[%emt 0:01:26]} 35. Qh4 {[%emt 0:00:13]} Rg5 {[%emt 0:00:31]} 36. Qf4 {[%emt 0:00:05]} Re5 {[%emt 0:00:25]} 37. Qh4 {[%emt 0:00:23]} Rg5 {[%emt 0:00:49]} 38. Rd6 {[%emt 0:00:59]} Rxg2+ {[%emt 0:00:05]} 39. Kxg2 {[%emt 0:00:09]} Nxd6 {[%emt 0:00:35]} 40. Qg3 {[%emt 0:01:13]} Kd7 {[%emt 0:00:18]} 41. Qxd6+ {[%emt 0:30:03]} Qxd6 {[%emt 0:30:08]} 42. Bxd6 {[%emt 0:00:03]} Kxd6 {[%emt 0:00:00]} 43. Kf2 {[%emt 0:00:00]} c4 {[%emt 0:00:00]} 44. Ke3 {[%emt 0:00:00]} b5 {[%emt 0:00:00]} 45. Kd4 {[%emt 0:00:00]} 1-0